fUST/lending_fUST_20240416
["ID","MTS","AMOUNT","RATE_DAILY","PERIOD"]
[322779974,1713279048674,-1554.0,0.0003398,35]
[322779975,1713279048684,-150.5,0.0003398,35]
[322779976,1713279048694,-150.5,0.0003398,35]
[322779977,1713279048703,-546.0,0.0003398,35]
[322779978,1713279048712,-150.5,0.0003398,35]
[322779979,1713279048722,-150.5,0.0003399,35]
[322779980,1713279048731,-1554.0,0.0003399,35]
[322779981,1713279048741,-150.5,0.0003399,35]
[322779982,1713279048751,-150.5,0.0003399,35]
[322779983,1713279048760,-546.0,0.0003399,35]
[322779984,1713279048770,-150.5,0.0003399,35]
[322779985,1713279048779,-1218.12013645,0.00033998,7]
[322779986,1713279048788,-199.42387876,0.00033999,7]
[322779987,1713279048797,-382.04329023,0.00033999,7]
[322779988,1713279048807,-163.73283867,0.00033999,7]
[322779989,1713279048816,-77649.32028267,0.00034,5]
[322779990,1713279048825,-19046.75769695,0.00034,2]
[322779993,1713279270389,600.0,0.00012,7]
[322779994,1713279276964,2607.74559808,0.00021,7]
[322779999,1713279607167,-392171.61498205,0.00038248,40]
[322780000,1713279607207,-504.17426314,0.00038248,40]
[322780001,1713279607244,-500.0,0.00038248,40]
[322780002,1713279607284,-500.0,0.00038248,40]
[322780003,1713279607317,-500.0,0.00038248,40]
[322780004,1713279607353,-500.0,0.00038248,40]
[322780005,1713279607392,-500.0,0.00038248,40]
[322780006,1713279607429,-500.0,0.00038248,40]
[322780007,1713279607465,-500.0,0.00038248,40]
[322780008,1713279607501,-500.0,0.00038248,40]
[322780009,1713279607540,-500.0,0.00038248,40]
[322780010,1713279607577,-500.0,0.00038248,40]
[322780011,1713279607615,-191.43583009,0.00038248,40]
[322780012,1713279607650,-500.0,0.00038248,40]
[322780013,1713279607683,-500.0,0.00038248,40]
[322780014,1713279607835,-500.0,0.00038248,40]
[322780015,1713279607885,-500.0,0.00038248,40]
[322780016,1713279607922,-500.0,0.00038248,40]
[322780017,1713279607957,-500.0,0.00038248,40]
[322780018,1713279607992,-500.0,0.00038248,40]
[322780019,1713279608028,-500.0,0.00038248,40]
[322780020,1713279608062,-500.0,0.00038248,40]
[322780021,1713279608094,-500.0,0.00038248,40]
[322780022,1713279608129,-500.0,0.00038248,40]
[322780023,1713279608162,-500.0,0.00038248,40]
[322780024,1713279608193,-500.0,0.00038248,40]
[322780025,1713279608226,-500.0,0.00038248,40]
[322780026,1713279608259,-328.48,0.00038248,40]
[322780027,1713279608294,-500.0,0.00038248,40]
[322780028,1713279608326,-500.0,0.00038248,40]
[322780029,1713279608359,-500.0,0.00038248,40]
[322780030,1713279608391,-500.0,0.00038248,40]
[322780031,1713279608424,-500.0,0.00038248,40]
[322780032,1713279608455,-508.4004253,0.00038248,40]
[322780033,1713279608486,-500.0,0.00038248,40]
[322780034,1713279608516,-500.0,0.00038248,40]
[322780035,1713279608553,-500.0,0.00038248,40]
[322780036,1713279608589,-500.0,0.00038248,40]
[322780037,1713279608624,-500.0,0.00038248,40]
[322780038,1713279608659,-500.0,0.00038248,40]
[322780039,1713279608695,-500.0,0.00038248,40]
[322780040,1713279608730,-236.83,0.00038248,40]
[322780041,1713279608765,-502.14378417,0.00038248,40]
[322780042,1713279608804,-480.59555994,0.00038248,40]
[322780043,1713279608846,-500.0,0.00038248,40]
[322780044,1713279608887,-500.0,0.00038248,40]
[322780045,1713279608926,-500.0,0.00038248,40]
[322780046,1713279608964,-500.0,0.00038248,40]
[322780047,1713279609001,-500.0,0.00038248,40]
[322780048,1713279609037,-535.53271523,0.00038248,40]
[322780049,1713279609073,-500.0,0.00038248,40]
[322780050,1713279609107,-500.0,0.00038248,40]
[322780051,1713279609141,-500.0,0.00038248,40]
[322780052,1713279609175,-499.97693314,0.00038248,40]
[322780053,1713279609208,-154.86062544,0.00038248,40]
[322780054,1713279609243,-500.0,0.00038248,40]
[322780055,1713279609277,-500.0,0.00038248,40]
[322780056,1713279609311,-500.0,0.00038248,40]
[322780057,1713279609344,-500.0,0.00038248,40]
[322780058,1713279609377,-500.0,0.00038248,40]
[322780059,1713279609412,-500.0,0.00038248,40]
[322780060,1713279609444,-263.12,0.00038248,40]
[322780061,1713279609480,-500.0,0.00038248,40]
[322780062,1713279609513,-500.0,0.00038248,40]
[322780063,1713279609548,-500.0,0.00038248,40]
[322780064,1713279609580,-500.0,0.00038248,40]
[322780065,1713279609614,-500.0,0.00038248,40]
[322780066,1713279609646,-500.0,0.00038248,40]
[322780067,1713279609679,-500.0,0.00038248,40]
[322780068,1713279609711,-500.0,0.00038248,40]
[322780069,1713279609743,-500.0,0.00038248,40]
[322780070,1713279609780,-500.0,0.00038248,40]
[322780071,1713279609815,-500.0,0.00038248,40]
[322780072,1713279609857,-500.0,0.00038248,40]
[322780073,1713279609896,-500.0,0.00038248,40]
[322780074,1713279609935,-500.0,0.00038248,40]
[322780075,1713279609974,-300.67461496,0.00038248,40]
[322780076,1713279610010,-500.0,0.00038248,40]
[322780077,1713279610058,-500.0,0.00038248,40]
[322780078,1713279610099,-500.0,0.00038248,40]
[322780079,1713279610139,-237.39,0.00038248,40]
[322780080,1713279610180,-500.0,0.00038248,40]
[322780081,1713279610218,-500.0,0.00038248,40]
[322780082,1713279610255,-500.0,0.00038248,40]
[322780083,1713279610302,-377.37248519,0.00038248,40]
[322780084,1713279610339,-500.0,0.00038248,40]
[322780085,1713279610382,-500.0,0.00038248,40]
[322780086,1713279610422,-500.0,0.00038248,40]
[322780087,1713279610461,-500.0,0.00038248,40]
[322780088,1713279610499,-500.0,0.00038248,40]
[322780089,1713279610537,-500.0,0.00038248,40]
[322780090,1713279610572,-500.0,0.00038248,40]
[322780091,1713279610607,-500.0,0.00038248,40]
[322780092,1713279610646,-500.0,0.00038248,40]
[322780093,1713279610682,-500.0,0.00038248,40]
[322780094,1713279610722,-500.0,0.00038248,40]
[322780095,1713279610758,-500.0,0.00038248,40]
[322780096,1713279610797,-500.0,0.00038248,40]
[322780097,1713279610835,-500.0,0.00038248,40]
[322780098,1713279610877,-500.0,0.00038248,40]
[322780099,1713279610919,-500.0,0.00038248,40]
[322780100,1713279610961,-500.0,0.00038248,40]
[322780101,1713279611000,-500.0,0.00038248,40]
[322780102,1713279611043,-500.0,0.00038248,40]
[322780103,1713279611081,-500.0,0.00038248,40]
[322780104,1713279611115,-500.0,0.00038248,40]
[322780105,1713279611149,-567.77,0.00038248,40]
[322780106,1713279611185,-589.68021895,0.00038248,40]
[322780107,1713279611221,-500.0,0.00038248,40]
[322780108,1713279611257,-500.0,0.00038248,40]
[322780109,1713279611296,-500.0,0.00038248,40]
[322780110,1713279611332,-500.0,0.00038248,40]
[322780111,1713279611368,-500.0,0.00038248,40]
[322780112,1713279611403,-500.0,0.00038248,40]
[322780113,1713279611443,-500.0,0.00038248,40]
[322780114,1713279611481,-500.0,0.00038248,40]
[322780115,1713279611525,-500.0,0.00038248,40]
[322780116,1713279611567,-589.8,0.00038248,40]
[322780117,1713279611605,-500.0,0.00038248,40]
[322780118,1713279611643,-500.0,0.00038248,40]
[322780119,1713279611680,-500.0,0.00038248,40]
[322780120,1713279611717,-500.0,0.00038248,40]
[322780121,1713279611753,-500.0,0.00038248,40]
[322780122,1713279611799,-500.0,0.00038248,40]
[322780123,1713279611833,-500.0,0.00038248,40]
[322780124,1713279611867,-500.0,0.00038248,40]
[322780125,1713279611901,-500.0,0.00038248,40]
[322780126,1713279611935,-500.0,0.00038248,40]
[322780127,1713279611971,-264.85867433,0.00038248,40]
[322780128,1713279612008,-500.0,0.00038248,40]
[322780129,1713279612052,-633.45682549,0.00038248,40]
[322780130,1713279612244,-504.48065379,0.00038248,40]
[322780131,1713279612284,-559.03924243,0.00038248,40]
[322780132,1713279612317,-500.0,0.00038248,40]
[322780133,1713279612351,-500.0,0.00038248,40]
[322780134,1713279612383,-500.0,0.00038248,40]
[322780135,1713279612417,-500.0,0.00038248,40]
[322780136,1713279612452,-500.0,0.00038248,40]
[322780137,1713279612484,-500.0,0.00038248,40]
[322780138,1713279612516,-500.0,0.00038248,40]
[322780139,1713279612556,-578.57,0.00038248,40]
[322780140,1713279612589,-500.0,0.00038248,40]
[322780141,1713279612620,-500.0,0.00038248,40]
[322780142,1713279612652,-500.0,0.00038248,40]
[322780143,1713279612685,-500.0,0.00038248,40]
[322780144,1713279612716,-500.0,0.00038248,40]
[322780145,1713279612748,-500.0,0.00038248,40]
[322780146,1713279612780,-500.0,0.00038248,40]
[322780147,1713279612812,-500.0,0.00038248,40]
[322780148,1713279612846,-500.0,0.00038248,40]
[322780149,1713279612879,-500.0,0.00038248,40]
[322780150,1713279612913,-236.71,0.00038248,40]
[322780151,1713279612946,-500.0,0.00038248,40]
[322780152,1713279612979,-500.0,0.00038248,40]
[322780153,1713279613012,-513.71192368,0.00038248,40]
[322780154,1713279613046,-500.0,0.00038248,40]
[322780155,1713279613078,-500.0,0.00038248,40]
[322780156,1713279613111,-177.1365276,0.00038248,40]
[322780157,1713279613144,-238.07850354,0.00038248,40]
[322780158,1713279613177,-500.0,0.00038248,40]
[322780159,1713279613210,-500.0,0.00038248,40]
[322780160,1713279613243,-500.0,0.00038248,40]
[322780161,1713279613280,-500.0,0.00038248,40]
[322780162,1713279613312,-500.0,0.00038248,40]
[322780163,1713279613343,-500.0,0.00038248,40]
[322780164,1713279613376,-500.0,0.00038248,40]
[322780165,1713279613411,-500.0,0.00038248,40]
[322780166,1713279613446,-500.0,0.00038248,40]
[322780167,1713279613478,-500.0,0.00038248,40]
[322780168,1713279613510,-500.0,0.00038248,40]
[322780169,1713279613549,-500.0,0.00038248,40]
[322780170,1713279613584,-500.0,0.00038248,40]
[322780171,1713279613623,-500.0,0.00038248,40]
[322780172,1713279613660,-172.2,0.00038248,40]
[322780173,1713279613698,-500.0,0.00038248,40]
[322780174,1713279613736,-318.69758955,0.00038248,40]
[322780175,1713279613783,-500.0,0.00038248,40]
[322780176,1713279613822,-500.0,0.00038248,40]
[322780177,1713279613857,-500.0,0.00038248,40]
[322780178,1713279613892,-500.0,0.00038248,40]
[322780179,1713279613930,-500.0,0.00038248,40]
[322780180,1713279613964,-335.22,0.00038248,40]
[322780181,1713279613997,-500.0,0.00038248,40]
[322780182,1713279614034,-500.0,0.00038248,40]
[322780183,1713279614067,-500.0,0.00038248,40]
[322780184,1713279614098,-500.0,0.00038248,40]
[322780185,1713279614131,-500.0,0.00038248,40]
[322780186,1713279614162,-203.5655359,0.00038248,40]
[322780187,1713279614209,-500.0,0.00038248,40]
[322780188,1713279614246,-500.0,0.00038248,40]
[322780189,1713279614281,-523.24,0.00038248,40]
[322780190,1713279614315,-500.0,0.00038248,40]
[322780191,1713279614348,-500.0,0.00038248,40]
[322780192,1713279614383,-500.0,0.00038248,40]
[322780193,1713279614422,-500.0,0.00038248,40]
[322780194,1713279614458,-581.6014806,0.00038248,40]
[322780195,1713279614494,-500.0,0.00038248,40]
[322780196,1713279614530,-263.95825479,0.00038248,40]
[322780197,1713279614565,-500.0,0.00038248,40]
[322780198,1713279614600,-510.11,0.00038248,40]
[322780199,1713279614632,-500.0,0.00038248,40]
[322780200,1713279614666,-500.0,0.00038248,40]
[322780201,1713279614699,-500.0,0.00038248,40]
[322780202,1713279614732,-500.0,0.00038248,40]
[322780203,1713279614765,-637.59,0.00038248,40]
[322780204,1713279614800,-500.0,0.00038248,40]
[322780205,1713279614833,-500.0,0.00038248,40]
[322780206,1713279614869,-500.0,0.00038248,40]
[322780207,1713279614904,-500.0,0.00038248,40]
[322780208,1713279614937,-197.94,0.00038248,40]
[322780209,1713279614972,-500.0,0.00038248,40]
[322780210,1713279615006,-500.0,0.00038248,40]
[322780211,1713279615044,-500.0,0.00038248,40]
[322780212,1713279615078,-500.0,0.00038248,40]
[322780213,1713279615111,-500.0,0.00038248,40]
[322780214,1713279615143,-500.0,0.00038248,40]
[322780215,1713279615174,-500.0,0.00038248,40]
[322780216,1713279615205,-500.0,0.00038248,40]
[322780217,1713279615237,-197.77,0.00038248,40]
[322780218,1713279615270,-500.0,0.00038248,40]
[322780219,1713279615304,-500.0,0.00038248,40]
[322780220,1713279615339,-210.12,0.00038248,40]
[322780221,1713279615370,-500.0,0.00038248,40]
[322780222,1713279615408,-323.40353915,0.00038248,40]
[322780223,1713279615440,-500.0,0.00038248,40]
[322780224,1713279615471,-500.0,0.00038248,40]
[322780225,1713279615502,-600.83,0.00038248,40]
[322780226,1713279615533,-597.0811703,0.00038248,40]
[322780227,1713279615565,-500.0,0.00038248,40]
[322780228,1713279615599,-500.0,0.00038248,40]
[322780229,1713279615633,-641.38,0.00038248,40]
[322780230,1713279615807,-500.0,0.00038248,40]
[322780231,1713279615851,-500.0,0.00038248,40]
[322780232,1713279615894,-500.0,0.00038248,40]
[322780233,1713279615935,-500.0,0.00038248,40]
[322780234,1713279615976,-500.0,0.00038248,40]
[322780235,1713279616016,-500.0,0.00038248,40]
[322780236,1713279616070,-500.0,0.00038248,40]
[322780237,1713279616117,-500.0,0.00038248,40]
[322780238,1713279616165,-500.0,0.00038248,40]
[322780239,1713279616209,-441.81,0.00038248,40]
[322780240,1713279616254,-500.0,0.00038248,40]
[322780241,1713279616294,-500.0,0.00038248,40]
[322780242,1713279616330,-500.0,0.00038248,40]
[322780243,1713279616368,-500.0,0.00038248,40]
[322780244,1713279616403,-500.0,0.00038248,40]
[322780245,1713279616439,-500.0,0.00038248,40]
[322780246,1713279616473,-446.38,0.00038248,40]
[322780247,1713279616505,-500.0,0.00038248,40]
[322780248,1713279616541,-500.0,0.00038248,40]
[322780249,1713279616572,-500.0,0.00038248,40]
[322780250,1713279616607,-500.0,0.00038248,40]
[322780251,1713279616643,-500.0,0.00038248,40]
[322780252,1713279616676,-500.0,0.00038248,40]
[322780253,1713279616708,-590.78,0.00038248,40]
[322780254,1713279616740,-500.0,0.00038248,40]
[322780255,1713279616777,-500.0,0.00038248,40]
[322780256,1713279616809,-500.0,0.00038248,40]
[322780257,1713279616841,-500.0,0.00038248,40]
[322780258,1713279616873,-604.55685063,0.00038248,40]
[322780259,1713279616904,-502.06359046,0.00038248,40]
[322780260,1713279616937,-313.27641001,0.00038248,40]
[322780261,1713279616968,-500.0,0.00038248,40]
[322780262,1713279617000,-500.0,0.00038248,40]
[322780263,1713279617032,-500.0,0.00038248,40]
[322780264,1713279617064,-500.0,0.00038248,40]
[322780265,1713279617095,-511.82,0.00038248,40]
[322780266,1713279617127,-500.0,0.00038248,40]
[322780267,1713279617158,-500.0,0.00038248,40]
[322780268,1713279617189,-500.0,0.00038248,40]
[322780269,1713279617220,-500.0,0.00038248,40]
[322780270,1713279617256,-500.0,0.00038248,40]
[322780271,1713279617288,-500.0,0.00038248,40]
[322780272,1713279617319,-500.0,0.00038248,40]
[322780273,1713279617354,-500.0,0.00038248,40]
[322780274,1713279617387,-500.0,0.00038248,40]
[322780275,1713279617419,-623.29,0.00038248,40]
[322780276,1713279617453,-500.0,0.00038248,40]
[322780277,1713279617485,-500.0,0.00038248,40]
[322780278,1713279617518,-500.0,0.00038248,40]
[322780279,1713279617555,-500.0,0.00038248,40]
[322780280,1713279617588,-500.0,0.00038248,40]
[322780281,1713279617622,-500.0,0.00038248,40]
[322780282,1713279617657,-500.0,0.00038248,40]
[322780283,1713279617691,-500.0,0.00038248,40]
[322780284,1713279617724,-500.0,0.00038248,40]
[322780285,1713279617758,-500.0,0.00038248,40]
[322780286,1713279617794,-500.0,0.00038248,40]
[322780287,1713279617827,-500.0,0.00038248,40]
[322780288,1713279617864,-500.0,0.00038248,40]
[322780289,1713279617898,-500.0,0.00038248,40]
[322780290,1713279617931,-500.0,0.00038248,40]
[322780291,1713279617963,-500.0,0.00038248,40]
[322780292,1713279617999,-500.0,0.00038248,40]
[322780293,1713279618035,-500.0,0.00038248,40]
[322780294,1713279618068,-500.0,0.00038248,40]
[322780295,1713279618101,-338.83918712,0.00038248,40]
[322780296,1713279618135,-500.0,0.00038248,40]
[322780297,1713279618169,-500.0,0.00038248,40]
[322780298,1713279618202,-500.0,0.00038248,40]
[322780299,1713279618238,-500.0,0.00038248,40]
[322780300,1713279618271,-500.0,0.00038248,40]
[322780301,1713279618306,-500.0,0.00038248,40]
[322780302,1713279618340,-500.0,0.00038248,40]
[322780303,1713279618375,-500.0,0.00038248,40]
[322780304,1713279618409,-500.0,0.00038248,40]
[322780305,1713279618441,-500.0,0.00038248,40]
[322780306,1713279618477,-500.0,0.00038248,40]
[322780307,1713279618509,-500.0,0.00038248,40]
[322780308,1713279618546,-500.0,0.00038248,40]
[322780309,1713279618580,-500.0,0.00038248,40]
[322780310,1713279618614,-427.27692768,0.00038248,40]
[322780311,1713279618648,-500.0,0.00038248,40]
[322780312,1713279618682,-500.0,0.00038248,40]
[322780313,1713279618714,-500.0,0.00038248,40]
[322780314,1713279618746,-500.0,0.00038248,40]
[322780315,1713279618782,-494.99,0.00038248,40]
[322780316,1713279618813,-429.81020341,0.00038248,40]
[322780317,1713279618847,-500.0,0.00038248,40]
[322780318,1713279618880,-500.0,0.00038248,40]
[322780319,1713279618914,-500.0,0.00038248,40]
[322780320,1713279618947,-500.0,0.00038248,40]
[322780321,1713279618980,-559.5,0.00038248,40]
[322780322,1713279619015,-500.0,0.00038248,40]
[322780323,1713279619049,-500.0,0.00038248,40]
[322780324,1713279619083,-500.0,0.00038248,40]
[322780325,1713279619116,-500.0,0.00038248,40]
[322780326,1713279619149,-500.0,0.00038248,40]
[322780327,1713279619182,-500.0,0.00038248,40]
[322780328,1713279619216,-212.69,0.00038248,40]
[322780329,1713279619247,-500.0,0.00038248,40]
[322780330,1713279619281,-500.0,0.00038248,40]
[322780331,1713279619314,-500.0,0.00038248,40]
[322780332,1713279619349,-500.0,0.00038248,40]
[322780333,1713279619383,-500.0,0.00038248,40]
[322780334,1713279619519,-500.0,0.00038248,40]
[322780335,1713279619558,-500.0,0.00038248,40]
[322780336,1713279619592,-500.0,0.00038248,40]
[322780337,1713279619626,-500.0,0.00038248,40]
[322780338,1713279619660,-548.27,0.00038248,40]
[322780339,1713279619693,-500.0,0.00038248,40]
[322780340,1713279619727,-500.0,0.00038248,40]
[322780341,1713279619760,-500.0,0.00038248,40]
[322780342,1713279619795,-280.46,0.00038248,40]
[322780343,1713279619829,-500.0,0.00038248,40]
[322780344,1713279619862,-500.0,0.00038248,40]
[322780345,1713279619896,-500.0,0.00038248,40]
[322780346,1713279619931,-500.0,0.00038248,40]
[322780347,1713279619966,-500.0,0.00038248,40]
[322780348,1713279619998,-500.0,0.00038248,40]
[322780349,1713279620035,-500.0,0.00038248,40]
[322780350,1713279620068,-500.0,0.00038248,40]
[322780351,1713279620102,-616.21,0.00038248,40]
[322780352,1713279620137,-500.0,0.00038248,40]
[322780353,1713279620172,-500.0,0.00038248,40]
[322780354,1713279620205,-500.0,0.00038248,40]
[322780355,1713279620239,-534.52,0.00038248,40]
[322780356,1713279620273,-500.0,0.00038248,40]
[322780362,1713279690806,1477.0449706,0.00018996,2]
[322780950,1713279897745,500.0,0.0003825,40]
[322780951,1713279898003,500.0,0.0003825,40]
[322780952,1713279898331,500.0,0.0003825,40]
[322780953,1713279898605,500.0,0.0003825,40]
[322780954,1713279898920,500.0,0.0003825,40]
[322780955,1713279899226,341.35,0.0003825,40]
[322780959,1713279969068,318.69758955,0.0003825,40]
[322780960,1713279969530,-188.93614172,0.00019974,2]
[322780961,1713279969550,-766.94401523,0.00019975,2]
[322780962,1713279969571,-154.86062544,0.00019975,2]
[322780963,1713279969591,-203.59775165,0.00019976,2]
[322780964,1713279969613,-300.0,0.00019979,2]
[322780965,1713279969634,-300.0,0.00019979,2]
[322780966,1713279969653,-7857.04488403,0.0001998,2]
[322780967,1713279969672,-31260.08043228,0.00019981,2]
[322780968,1713279969692,-519.0311523,0.00019998,2]
[322780969,1713279969712,-1164.19725705,0.00019999,2]
[322780970,1713279969732,-167.32415065,0.0002,2]
[322780971,1713279969757,-468.90340767,0.0002,2]
[322780972,1713279969787,-47041.52018198,0.0002,2]
[322780973,1713279988232,427.27692768,0.0003825,40]
[322780974,1713279995211,545.75201922,0.0003825,40]
[322780975,1713279998070,321.12,0.0003825,40]
[322780976,1713280001161,300.67461496,0.0003825,40]
[322780977,1713280004279,500.0,0.0003825,40]
[322780978,1713280004564,166.35,0.0003825,40]
[322780979,1713280004981,420.24,0.0003825,40]
[322780980,1713280006745,593.21,0.0003825,40]
[322780986,1713280012565,398.22222776,0.0003825,40]
[322780987,1713280014020,419.00770788,0.0003825,40]
[322780988,1713280014201,449.28924339,0.0003825,40]
[322780989,1713280018309,500.0,0.0003825,40]
[322780991,1713280019342,340.74467238,0.0003825,40]
[322780992,1713280021390,204.23471977,0.0003825,40]
[322780993,1713280023880,505.99,0.0003825,40]
[322780994,1713280024133,474.78,0.0003825,40]
[322780995,1713280024402,242.21710893,0.0003825,40]
[322780996,1713280026066,251.213631,0.0003825,40]
[322780997,1713280035037,235.0,0.0003825,40]
[322780998,1713280035231,393.92670443,0.0003825,40]
[322780999,1713280040676,228.75,0.0003825,40]
[322781000,1713280047959,609.74,0.0003825,40]
[322781001,1713280054430,500.0,0.0003825,40]
[322781003,1713280054729,500.0,0.0003825,40]
[322781004,1713280055002,346.52,0.0003825,40]
[322781005,1713280058067,403.66573474,0.0003825,40]
[322781006,1713280058177,565.95913636,0.0003825,40]
[322781007,1713280061326,223.89043804,0.0003825,40]
[322781008,1713280061618,235.30540569,0.0003825,40]
[322781009,1713280077487,203.5655359,0.0003825,40]
[322781010,1713280084585,521.19078498,0.0003825,40]
[322781011,1713280087089,317.71072712,0.0003825,40]
[322781012,1713280087847,500.0,0.0003825,40]
[322781013,1713280088747,465.2788164,0.0003825,40]
[322781014,1713280095386,203.28674273,0.0003825,40]
[322781015,1713280095709,500.0,0.0003825,40]
[322781016,1713280096029,500.0,0.0003825,40]
[322781017,1713280096300,304.35758228,0.0003825,40]
[322781018,1713280110526,500.0,0.0003825,40]
[322781019,1713280110829,155.49422871,0.0003825,40]
[322781020,1713280111128,299.76947038,0.0003825,40]
[322781021,1713280116154,500.0,0.0003825,40]
[322781022,1713280116496,245.38,0.0003825,40]
[322781023,1713280119102,441.71368106,0.0003825,40]
[322781024,1713280125007,500.0,0.0003825,40]
[322781025,1713280125050,500.0,0.0003825,40]
[322781026,1713280125330,500.0,0.0003825,40]
[322781027,1713280125370,500.0,0.0003825,40]
[322781028,1713280125604,500.0,0.0003825,40]
[322781029,1713280125874,500.0,0.0003825,40]
[322781030,1713280126185,500.0,0.0003825,40]
[322781031,1713280126477,500.0,0.0003825,40]
[322781032,1713280126770,500.0,0.0003825,40]
[322781033,1713280127083,286.98251719,0.0003825,40]
[322781034,1713280127825,185.24,0.0003825,40]
[322781035,1713280131024,207.59,0.0003825,40]
[322781036,1713280133112,500.0,0.0003825,40]
[322781037,1713280133374,328.18,0.0003825,40]
[322781040,1713280136470,500.0,0.0003825,40]
[322781041,1713280136766,502.2031356,0.0003825,40]
[322781043,1713280137721,492.73142195,0.0003825,40]
[322781044,1713280142062,213.06390721,0.0003825,40]
[322781045,1713280147995,500.0,0.0003825,40]
[322781046,1713280148266,168.70935362,0.00038228,40]
[322781048,1713280156005,353.03413188,0.00038228,40]
[322781049,1713280156487,184.19095975,0.00038228,40]
[322781051,1713280157543,324.04691321,0.00038228,40]
[322781052,1713280159470,429.68498643,0.00038228,40]
[322781053,1713280160020,500.0,0.00038228,40]
[322781054,1713280160329,343.2,0.00038228,40]
[322781055,1713280161002,500.0,0.00038228,40]
[322781056,1713280161316,267.92,0.00038228,40]
[322781057,1713280164121,385.49374237,0.00038228,40]
[322781058,1713280164312,500.0,0.00038228,40]
[322781059,1713280164650,500.0,0.00038228,40]
[322781060,1713280164930,500.0,0.00038228,40]
[322781061,1713280165235,500.0,0.00038228,40]
[322781062,1713280165537,302.86230521,0.00038228,40]
[322781063,1713280166920,500.0,0.00038228,40]
[322781064,1713280167235,500.0,0.00038228,40]
[322781065,1713280167514,500.0,0.00038228,40]
[322781066,1713280167798,431.65447901,0.00038228,40]
[322781067,1713280170530,242.43509925,0.00038228,40]
[322781068,1713280174098,150.68989415,0.00038228,40]
[322781069,1713280175787,505.82,0.00038228,40]
[322781070,1713280181291,606.68,0.00038228,40]
[322781071,1713280185498,500.0,0.00038228,40]
[322781072,1713280185752,500.0,0.00038228,40]
[322781073,1713280185795,500.0,0.00038228,40]
[322781074,1713280186053,500.0,0.00038228,40]
[322781075,1713280186092,633.51,0.00038228,40]
[322781076,1713280186323,500.0,0.00038228,40]
[322781077,1713280186632,254.24428064,0.00038228,40]
[322781078,1713280188254,394.85,0.00038228,40]
[322781079,1713280190362,380.75407996,0.00038228,40]
[322781080,1713280192906,173.9,0.00038228,40]
[322781081,1713280196920,449.90788822,0.00038228,40]
[322781082,1713280198104,180.39,0.00038228,40]
[322781083,1713280198305,195.37979774,0.00038228,40]
[322781084,1713280201235,500.0,0.00038228,40]
[322781085,1713280201527,500.0,0.00038228,40]
[322781086,1713280201855,500.0,0.00038228,40]